Cogmind - Beta 13 @@@ ROGUE MODE // 2024.05.20 @ 19:01:50 Player: FauxMaasks Result: Destroyed by G-47 Trooper with Particle Gun Performance ------------- Evolutions (2) 1000 Regions Visited (4) 800 Robots Destroyed (26) 130 Value Destroyed (558) 558 Prototype IDs (4) 80 Alien Tech Used (0) 0 Bonus (14) 14 TOTAL SCORE: 2582 Bonus ------- Follower Combat Kills 14 Cogmind --------- Core Integrity 0/550 Matter 290/300 Energy 76/100 System Corruption 5% Temperature Cool (18) Movement Rolling (85) Location -8/Materials Parts ------- > --- POWER (1) -------- (None) > --- PROPULSION (2) --- Wheel Armored Wheel > --- UTILITY (6) ------ (None) > --- WEAPON (2) ------- (None) > --- INVENTORY (5) ---- Faulty Experimental Sensor Array Grenade Launcher Peak State ------------ > --- POWER ------------ Ion Engine > --- PROPULSION ------- Compact Wheel Compact Wheel > --- UTILITY ---------- Small Storage Unit Experimental Sensor Array > --- WEAPON ----------- Medium Laser Assault Rifle > --- INVENTORY -------- Wheel Wheel Compact Matter Pod Medium Laser Assault Rifle Light Assault Rifle Grenade Launcher Grenade Launcher [Rating: 16] Favorites ----------- Power Ion Engine Engine Ion Engine Propulsion Compact Wheel Wheel Compact Wheel Utility Small Storage Unit Device Sensor Array Storage Small Storage Unit Processor Targeting Computer Protection Improved Light Armor Plating Weapon Assault Rifle Energy Gun Medium Laser Ballistic Gun Assault Rifle Launcher Grenade Launcher Build | -11 -10 -10 -9 -8 ------- Run | Yrd Mat Min Mat Mat Slots Evolved 4 | . . . 2 2 Power . | . . . . . Propulsion . | . . . . . Utility 4 | . . . 2 2 Weapon . | . . . . . Parts Attached 37 | 7 . 10 6 14 Power 3 | 1 . 1 1 . Engine 3 | 1 . 1 1 . Core . | . . . . . Reactor . | . . . . . Propulsion 9 | 2 . 4 1 2 Treads . | . . . . . Leg . | . . . . . Wheel 9 | 2 . 4 1 2 Hover . | . . . . . Flight . | . . . . . Utility 13 | 2 . 3 1 7 Device 5 | 1 . 3 1 . Storage 1 | 1 . . . . Processor 4 | . . . . 4 Hackware . | . . . . . Protection 3 | . . . . 3 Artifact . | . . . . . Weapon 12 | 2 . 2 3 5 Energy Gun 2 | . . 1 1 . Energy Cannon . | . . . . . Ballistic Gun 9 | 2 . . 2 5 Ballistic Cannon . | . . . . . Launcher 1 | . . 1 . . Special Weapon . | . . . . . Impact Weapon . | . . . . . Slashing Weapon . | . . . . . Piercing Weapon . | . . . . . Special Melee Weapon . | . . . . . Unidentified Prototypes 2 | . . 1 . 1 Parts Lost 21 | . . 3 5 13 Power 1 | . . . 1 . Propulsion 5 | . . 2 1 2 Utility 10 | . . 1 1 8 Weapon 5 | . . . 2 3 Highest Loss Streak 11 | . . 3 4 11 To Critical Strikes . | . . . . . Average Slot Usage (%) 85 | . 100 94 79 59 Engine 10 | . 14 14 9 . Wheel 22 | . 28 25 22 11 Device 12 | . 14 11 17 5 Storage 12 | . 14 14 11 8 Processor 4 | . . . . 23 Energy Gun 7 | . . 13 8 . Ballistic Gun 15 | . 28 14 10 8 Naked Turns . | . . . . . Heaviest Build 16 | 15 15 16 14 12 Greatest Support 32 | 26 26 32 26 26 Greatest Overweight (x) 4 | . . 4 . 1 Average Overweight (x) . | . . . . . Largest Inventory Capacity 8 | 8 8 8 8 8 Average Capacity 7 | 7 8 8 8 7 Most Carried 8 | 3 6 8 8 8 Average Carried 6 | 1 2 7 7 6 Final Capacity 8 | 8 8 8 8 5 Final Carried 8 | 1 6 8 7 2 Class Distribution -------------------- 100% | Mutant Dominant Class ---------------- Mutant | -10/Materials Mutant | -10/Mines Mutant | -9/Materials Mutant | -8/Materials Resources | -11 -10 -10 -9 -8 ----------- Run | Yrd Mat Min Mat Mat Matter Collected 864 | 292 . 221 106 245 Remotely . | . . . . . Salvage Created 896 | 64 11 83 306 432 Parts 53 | 6 1 2 19 25 Haulers Intercepted 1 | . . . 1 . Recyclers Shooed 2 | 1 . . 1 . Parts Field Recycled . | . . . . . Retrieved Matter . | . . . . . Parts Self-Destructed . | . . . . . Prevented . | . . . . . Kills | -11 -10 -10 -9 -8 ------- Run | Yrd Mat Min Mat Mat Combat Hostiles Destroyed 18 | . 1 5 5 7 Guns 18 | . 1 5 5 7 Classes Destroyed 12 | 2 1 2 3 4 Worker 2 | . . . . 2 Builder 2 | . . . 1 1 Tunneler 2 | 1 . 1 . . Hauler 1 | . . . 1 . Recycler 3 | 1 . . 1 1 Mechanic 1 | . . . . 1 Watcher 1 | . . . . 1 Swarmer 6 | . 1 . 3 2 Grunt 4 | . . . . 4 Sentry 3 | . . . 2 1 Demolisher 1 | . . 1 . . Assembled 4 | . . 4 . . Best Kill Streak 6 | 2 1 3 5 6 Combat Bots Only 5 | . 1 3 5 4 Max Kills in Single Turn 6 | 1 1 1 1 6 Gunslinging . | . . . . . Exploded . | . . . . . Melee . | . . . . . Uniques/NPCs Destroyed . | . . . . . Combat | -11 -10 -10 -9 -8 -------- Run | Yrd Mat Min Mat Mat Hostile Shots Fired 224 | . 3 32 41 148 Missed 54 | . 1 7 11 35 Damage Taken 2736 | . 19 570 412 1735 Core 885 | . 9 223 90 563 Absorbed by Shields . | . . . . . Core Remaining (%) 61 | 100 . 7 77 . Volleys Fired 84 | 4 2 21 18 39 Largest 2 | 2 2 2 2 2 Hottest 70 | 40 40 70 70 46 Shots Fired 158 | 8 4 45 36 65 Gun 157 | 8 4 44 36 65 Cannon . | . . . . . Launcher 1 | . . 1 . . Special . | . . . . . Kinetic 120 | 8 4 23 20 65 Thermal 37 | . . 21 16 . Explosive 1 | . . 1 . . Electromagnetic . | . . . . . Robot Hit Streak 26 | 3 1 6 18 26 Robot Miss Streak 3 | 3 2 3 3 1 Penetration Max . | . . . . . Secondary Targets 3 | . . . . 3 Max Gunslinging Chain 1 | . . . . 1 Shots Hit Robots 116 | 4 1 24 27 60 Core Hits 50 | 3 1 11 12 23 Critical Kills . | . . . . . Critical Parts Destroyed . | . . . . . Critical Strikes 1 | . . 1 . . Burn 1 | . . 1 . . Melee Attacks . | . . . . . Impact . | . . . . . Slashing . | . . . . . Piercing . | . . . . . Sneak Attacks . | . . . . . Combat Hostiles . | . . . . . Follow-up Attacks . | . . . . . Damage Inflicted 2093 | 53 12 297 323 1408 Guns 1477 | 53 12 297 323 792 Cannons . | . . . . . Explosions 602 | . . . . 602 Melee . | . . . . . Ramming 14 | . . . . 14 Kinetic 1215 | 53 12 160 198 792 Thermal 864 | . . 137 125 602 Explosive . | . . . . . Electromagnetic . | . . . . . Impact . | . . . . . Slashing . | . . . . . Piercing . | . . . . . Highest Corruption 9 | . . 9 . 5 Average Corruption 6 | . . 7 . 5 Corruption Purged . | . . . . . Corruption Blocked . | . . . . . Effects 30 | . . 23 . 7 Message Errors 5 | . . 4 . 1 Matter Fused 8 | . . 6 . 2 Heat Flow Errors 4 | . . 3 . 1 Energy Discharges 2 | . . 2 . . Data Loss (minor) 4 | . . 3 . 1 Data Loss (major) 1 | . . 1 . . Misfires 4 | . . 4 . . Weapon Failures 2 | . . . . 2 Overload Shots . | . . . . . Overflow Damage 117 | . . . . 117 Projectiles . | . . . . . Explosions 117 | . . . . 117 Melee . | . . . . . Knockbacks . | . . . . . Impact . | . . . . . Kinetic . | . . . . . Secondary . | . . . . . Self-Inflicted Damage 36 | . . 30 . 6 Shots 1 | . . 1 . . Rammed 3 | . . . . 3 Targets Rammed 3 | . . . . 3 Kicked . | . . . . . Crushed . | . . . . . Highest Temperature 210 | . . 210 18 102 Average Temperature 41 | . . 53 14 16 Received Heat Transfer 909 | . . . 144 765 Siege Activations . | . . . . . Robots Corrupted . | . . . . . Combat Hostiles . | . . . . . Parts Fried . | . . . . . Impact Corruptions . | . . . . . Robots Melted . | . . . . . Combat Hostiles . | . . . . . Parts Melted 2 | . . 1 . 1 Heat Transferred 1201 | . . 481 370 350 Parts Sabotaged . | . . . . . Parts Stolen . | . . . . . Parts Stripped . | . . . . . Power Chain Reactions . | . . . . . Alert | -11 -10 -10 -9 -8 ------- Run | Yrd Mat Min Mat Mat Peak Influence 306 | 10 145 63 306 291 Initial 56 | . 6 56 14 55 Average 107 | 2 94 41 197 156 Maximum Alert Level 1 | . . . 1 1 Low Security (%) 82 | 100 100 100 45 74 Level 1 17 | . . . 54 25 Level 2 . | . . . . . Level 3 . | . . . . . Level 4 . | . . . . . Level 5 . | . . . . . High Security . | . . . . . Max Security . | . . . . . Squads Dispatched 3 | . 1 . 1 1 Investigation 1 | . . . . 1 Extermination . | . . . . . Reinforcement 2 | . 1 . 1 . Assault . | . . . . . Garrison . | . . . . . Intercept . | . . . . . Searches Triggered . | . . . . . Construction Impeded . | . . . . . Haulers Reinforced . | . . . . . Active Scanning Responses . | . . . . . Cargo Convoy Interrupts . | . . . . . Stealth | -11 -10 -10 -9 -8 --------- Run | Yrd Mat Min Mat Mat Distress Signals 1 | . . . . 1 Communications Jammed . | . . . . . Distress Signals . | . . . . . Times Spotted 64 | . 8 10 26 20 Peak Tracking Total 13 | . 5 5 13 9 Tactical Retreats 8 | . 2 1 4 1 Traps | -11 -10 -10 -9 -8 ------- Run | Yrd Mat Min Mat Mat Traps Triggered . | . . . . . Indirectly . | . . . . . Trap Hack Attempts . | . . . . . Triggered . | . . . . . Disarmed . | . . . . . Reprogrammed . | . . . . . Reused . | . . . . . Traps Extracted . | . . . . . Installed . | . . . . . Triggered . | . . . . . Objects Rigged 3 | . . . . 3 Exploded 1 | . . . . 1 Machines | -11 -10 -10 -9 -8 ---------- Run | Yrd Mat Min Mat Mat Machines Disabled 2 | . . . . 2 Max in Single Turn 2 | . . . . 2 Machines Repaired . | . . . . . Machines Dismantled . | . . . . . Machines Sabotaged . | . . . . . Overloaded Fab Kills . | . . . . . Hacking | -11 -10 -10 -9 -8 --------- Run | Yrd Mat Min Mat Mat Machines Accessed 12 | . 6 . 3 3 Terminals 11 | . 6 . 3 2 Fabricators . | . . . . . Repair Stations . | . . . . . Recycling Units . | . . . . . Scanalyzers 1 | . . . . 1 Garrison Access . | . . . . . Total Hacks 41 | . 20 . 6 15 Successful 21 | . 11 . 3 7 Failed 20 | . 9 . 3 8 Catastrophic 3 | . 1 . . 2 Database Lockouts . | . . . . . Manual 31 | . 17 . 4 10 Terminals 36 | . 20 . 6 10 Fabricators . | . . . . . Repair Stations . | . . . . . Recycling Units . | . . . . . Scanalyzers 5 | . . . . 5 Garrison Access . | . . . . . Terminal Hacks 7 | . 6 . 1 . Robot Analysis 4 | . 3 . 1 . Prototype ID Bank 1 | . 1 . . . Terminal Index 1 | . 1 . . . Locate Traps 1 | . 1 . . . Fabricator Hacks . | . . . . . Repair Station Hacks . | . . . . . Recycling Unit Hacks . | . . . . . Scanalyzer 4 | . . . . 4 Insert Component 2 | . . . . 2 Analyze 2 | . . . . 2 Garrison Access Hacks . | . . . . . Unauthorized Hacks 10 | . 5 . 2 3 Terminals 10 | . 5 . 2 3 Assimilate 1 | . 1 . . . Botnet 5 | . 3 . 2 . Detonate 1 | . . . . 1 Disrupt 2 | . . . . 2 Operators 1 | . 1 . . . Fabricators . | . . . . . Repair Stations . | . . . . . Recycling Units . | . . . . . Scanalyzers . | . . . . . Garrison Access . | . . . . . Data Cores Recovered . | . . . . . Used . | . . . . . Hacking Detections 12 | . 6 . 3 3 Full Trace Events 1 | . . . . 1 Feedback Events . | . . . . . Feedback Blocked . | . . . . . Robot Schematics Acquired . | . . . . . Robots Built . | . . . . . Authchips . | . . . . . Time . | . . . . . Total Robot Build Rating . | . . . . . Part Schematics Acquired 2 | . . . . 2 Parts Built . | . . . . . Authchips . | . . . . . Time . | . . . . . Total Part Build Rating . | . . . . . Parts Repaired . | . . . . . Time . | . . . . . Parts Recycled . | . . . . . Recycled Matter . | . . . . . Retrieved Matter . | . . . . . Retrieved Components . | . . . . . Parts Scanalyzed 2 | . . . . 2 Part Schematics Acquired 2 | . . . . 2 Parts Damaged . | . . . . . Bothacking | -11 -10 -10 -9 -8 ------------ Run | Yrd Mat Min Mat Mat Used RIF Installer . | . . . . . Robots Hacked . | . . . . . Non-combat . | . . . . . Combat . | . . . . . Robot Hacks Applied . | . . . . . Relay Couplers Released . | . . . . . Fabnet Peak Effective % . | . . . . . Robots Rewired . | . . . . . Allies Hacked . | . . . . . Hacks Repelled . | . . . . . Allies | -11 -10 -10 -9 -8 -------- Run | Yrd Mat Min Mat Mat Total Allies 4 | . 1 3 . . Largest Group 3 | . 1 3 . . Highest-Rated Group 40 | . 10 40 . . Highest-Rated Ally 16 | . 10 16 . . Total Orders . | . . . . . Ally Attacks 10 | . . 10 . . Total Damage 88 | . . 88 . . Kills 3 | . . 3 . . Allies Corrupted . | . . . . . Allies Melted . | . . . . . Intel | -11 -10 -10 -9 -8 ------- Run | Yrd Mat Min Mat Mat Robot Analysis Total 4 | . 3 . 1 . Derelict Logs Recovered 1 | . . 1 . . Drone Launches . | . . . . . Drone Recoveries . | . . . . . Exploration | -11 -10 -10 -9 -8 ------------- Run | Yrd Mat Min Mat Mat Turns Passed 1900 | 64 393 671 453 319 Spaces Moved 1553 | 46 350 584 385 188 Core 69 | 2 . 12 . 55 Treads . | . . . . . Legs . | . . . . . Wheels 1484 | 44 350 572 385 133 Hover . | . . . . . Flight . | . . . . . Fastest Speed 50 | 50 90 90 90 85 Average Speed 93 | 86 90 99 90 92 Slowest Speed 250 | 90 90 250 100 100 Overloaded Moves . | . . . . . Propulsion Burnouts . | . . . . . Robots Hopped . | . . . . . Cave-ins Triggered . | . . . . . Exploration Rate (%) 43 | 3 62 97 41 14 Regions Visited 4 Branch Regions 1 Pre-discovered Areas . | . . . . . Known Exits Taken . | . . . . . Unknown Exits Taken 4 | 1 1 1 1 . Scrap Searched 1 | . . 1 . . Spaces Dug . | . . . . . Terrain Destroyed 51 | . . 7 . 44 Melee . | . . . . . Projectile . | . . . . . AOE 51 | . . 7 . 44 Terrain Rammed . | . . . . . Walls Destroyed . | . . . . . Machines Disabled . | . . . . . Actions | -11 -10 -10 -9 -8 --------- Run | Yrd Mat Min Mat Mat Total 1837 | 59 423 633 454 268 Wait 131 | . 67 5 41 18 Move 1549 | 45 349 583 384 188 Hop . | . . . . . Pick Up 18 | 3 5 6 2 2 Fast Attach 14 | 5 . 2 1 6 Attach 14 | 2 . 3 1 8 Detach 4 | . . 1 . 3 Swap 9 | . . 5 4 . Drop 10 | . . 6 3 1 Fire 84 | 4 2 21 18 39 Melee . | . . . . . Ram 3 | . . . . 3 Kick . | . . . . . Crush . | . . . . . Escape Stasis . | . . . . . Rewire 1 | . . 1 . . Trap . | . . . . . Miscellaneous . | . . . . . Route ------- -11/Scrapyard -10/Materials -10/Mines (discovered 3 exits: *Mat x2 / Sub) -9/Materials -8/Materials History --------- Turn | Location | Event 11 | -11/Scrapyard | Discovered new exit (range 16) 65 | -11/Scrapyard | Entered Materials 292 | -10/Materials | Discovered new exit (range 9) 317 | -10/Materials | Build established: Mutant 458 | -10/Materials | Entered Mines 465 | -10/Mines | Assembled infested the area 470 | -10/Mines | Assisted by a Guerilla fighting off Assembled 556 | -10/Mines | Lost 3 parts (2n1u) 707 | -10/Mines | Discovered new exit (range 9) 775 | -10/Mines | Found a damaged Exp. Sensor Array with a note attached 777 | -10/Mines | Found Prototype Device 777 | -10/Mines | Identified Exp. Sensor Array 848 | -10/Mines | Assisted by bots powering up and referring to "LRC-V3" 869 | -10/Mines | Discovered new exit (range 11) 878 | -10/Mines | Identified exit to Subcaves 923 | -10/Mines | Core integrity fell below 50% 929 | -10/Mines | Core integrity fell below 20% 953 | -10/Mines | Lost 3 allies 1129 | -10/Mines | Entered Materials 1129 | -9/Materials | Evolved 2 slots: Utility x2 1545 | -9/Materials | Lost 4 parts (1p1n1u1w) 1573 | -9/Materials | Discovered new exit (range 10) 1582 | -9/Materials | Entered another Materials area 1582 | -8/Materials | Evolved 2 slots: Utility x2 1822 | -8/Materials | Core integrity fell below 50% 1849 | -8/Materials | Core integrity fell below 20% 1867 | -8/Materials | Lost 11 parts (2n6u3w) 1901 | -8/Materials | Destroyed by G-47 Trooper with Particle Gun Last Messages --------------- 01875_ System corrupted: Heat flow error (+133). 01883_ Purification Channel disabled. 01886_ Targeting Computer destroyed. 01888_ Slammed into M-28 Smith. 01896_ Connecting with Terminal... >>Trojan(Detonate) Trojan loaded successfully. Testing... Scanning machine control network... Found 3 applicable machines. 8R033BJ8IQ: Nuclear Reactor Y3XL9WC609: Fusion Modulator CURBE16T7D: Fusion Modulator Infected machine control systems. >>Trojan(Disrupt) Trojan loaded successfully. Testing... Disruption routine running. 01899_ Slammed into Y-45 Defender. 01899_ Sml. Storage Unit destroyed. Map ----- +----------------------------------------------------+ | | | | | | | | | | | | | | | | | | | | | | | | | ?????????????????????????????????????????????????? | | ?????????????????????????????????????????????????? | | ?????????????????????????????????????????????????? | | ??????????????????????????????########???????????? | | ??????????????????????????????# !########????? | | ??????????????????######??????# # #????? | | ??????????????????# #??????# "" # #????? | | ??????????????????# #??????# S"" # !!! #????? | | ??????????????????# #??????# "" # !! #????? | | ??????????????????# ########= # !! #???## | | ??????????????????# # ######+## #???# | | ??????????????????#"" #Y gg ##### ##+######### | | ??????????????????#"T + T g / | | ??????????????????#"" #Y@ ###""=% #+####### # | | ??????????????????# # g #?####/### ????# # | | ??????????????????########g##### =* =#""" ??# # | | ???????????????????# % # !""" #""" ## #+ | | ???????????????????# """ """ # """ #""" ## == | | ???????????????????# """""""" # """ # ####+ | | ???????????????????# """"" " # # ! |#??# | | ???????????????????# # ########??# | | ???????????????????# ######/#?????????#! | | ???????????????????# #????? #?????????#! | | ???????????????????#############????? #?????????#! | | ????????????????????????????????????? #?????????# | | ????????????????????????????????????????????????## | | ?????????????????????????????????????????????????? | | ?????????????????????????????????????????????????? | | ?????????????????????????????????????????????????? | | ?????????????????????????????????????????????????? | | ?????????????????????????????????????????????????? | | ?????????????????????????????????????????????????? | | ?????????????????????????????????????????????????? | | ?????????????????????????????????????????????????? | | ?????????????????????????????????????????????????? | | ?????????????????????????????????????????????????? | | ?????????????????????????????????????????????????? | | ?????????????????????????????????????????????????? | +----------------------------------------------------+ Best States ------------- Heat Dissipation 31 Energy Generation 10 Energy Capacity 250 Matter Stores 300 Matter Capacity 300 Sight Range 16 Robot Scan Range 14 Terrain Scan Range 14 Terrain Scan Density 10 Armor Coverage 150 Evasion (%) 42 Targeting Accuracy 20 Item Schematics ----------------- Exp. Sensor Array | -8/Materials | Scanalyzed Hrd. Light Armor Plating | -8/Materials | Scanalyzed Robot Schematics ------------------ None Fabricated ------------ Nothing Alien Tech Used ----------------- None Achievements -------------- None Challenges ------------ None Game ------ Seed ChainModifiedSabre Manual? 0 Play Time 00:28:24 Cumulative 122.0 hours Start 2024.05.20 @ 18:35:18 End 2024.05.20 @ 19:01:50 Sessions 1 Manual Loads 0 Difficulty Rogue Special Mode None Game No. 30 Rogue 11 Adventurer 17 Explorer 2 Win Type - Total 3 Types 2/0/1/0/0/0/0/0/0 Lore% 48 Gallery% 60 Achievement% 57 Wizard Run 0 Options --------- Layout 2 ASCII 0 Keyboard 1 Movement Vi Keybinds 0 Fullscreen 0 Font 20/SmallcapsGlow Map View 64x51 Zoom Use 0% Tactical HUD 1 Map Filters NONE Filters NONE Steam 1 RUN: e138d6f9-a6c3-485b-adf5-a07442d35d53